[Event "Titled Tuesday Blitz July 18 Late 2023"]
[White "Hnydiuk, Aleksander"]
[Black "Winkels, Marcel"]
[WhiteFideId "1109057"]
[BlackFideId "1003887"]
[WhiteElo "2513"]
[BlackElo "2060"]
[Result "1-0"]
[Round "1"]
[TimeControl "180+2"]
[Date "2023.07.18"]
[WhiteClock "0:00:04"]
[BlackClock "0:01:18"]
[Board "190"]

1. e4 {[%clk 0:03:00]}  c5 {[%clk 0:02:59]} 2. Nf3 {[%clk 0:02:59]}  e6 {[%clk 0:03:00]} 3. d4 {[%clk 0:02:59]}  cxd4 {[%clk 0:03:00]} 4. Nxd4 {[%clk 0:02:59]}  Nc6 {[%clk 0:03:01]} 5. Nc3 {[%clk 0:02:59]}  Qc7 {[%clk 0:03:01]} 6. Be3 {[%clk 0:02:54]}  a6 {[%clk 0:03:00]} 7. Qd2 {[%clk 0:02:53]}  Nf6 {[%clk 0:03:00]} 8. f4 {[%clk 0:02:49]}  d6 {[%clk 0:02:58]} 9. O-O-O {[%clk 0:02:47]}  Be7 {[%clk 0:02:57]} 10. Be2 {[%clk 0:02:41]}  Nxd4 {[%clk 0:02:57]} 11. Qxd4 {[%clk 0:02:35]}  b5 {[%clk 0:02:56]} 12. e5 {[%clk 0:02:32]}  dxe5 {[%clk 0:02:53]} 13. fxe5 {[%clk 0:02:33]}  Nd7 {[%clk 0:02:52]} 14. Bf3 {[%clk 0:02:32]}  Bc5 {[%clk 0:02:42]} 15. Qd2 {[%clk 0:02:17]}  Bxe3 {[%clk 0:02:42]} 16. Qxe3 {[%clk 0:02:18]}  Rb8 {[%clk 0:02:37]} 17. Ne4 {[%clk 0:02:04]}  O-O {[%clk 0:02:33]} 18. Nd6 {[%clk 0:01:02]}  Qc5 {[%clk 0:02:30]} 19. Rhe1 {[%clk 0:00:58]}  Qxe3+ {[%clk 0:02:26]} 20. Rxe3 {[%clk 0:00:59]}  Nc5 {[%clk 0:02:24]} 21. Rc3 {[%clk 0:00:57]}  Na4 {[%clk 0:02:23]} 22. Rc7 {[%clk 0:00:55]}  a5 {[%clk 0:02:09]} 23. Be2 {[%clk 0:00:29]}  b4 {[%clk 0:01:57]} 24. Rd4 {[%clk 0:00:20]}  Nb6 {[%clk 0:01:56]} 25. Bh5 {[%clk 0:00:15]}  Nd5 {[%clk 0:01:55]} 26. Rxf7 {[%clk 0:00:10]}  Rxf7 {[%clk 0:01:54]} 27. Bxf7+ {[%clk 0:00:11]}  Kf8 {[%clk 0:01:54]} 28. Bh5 {[%clk 0:00:09]}  Bd7 {[%clk 0:01:52]} 29. Bf3 {[%clk 0:00:09]}  Bc6 {[%clk 0:01:50]} 30. Bxd5 {[%clk 0:00:08]}  Bxd5 {[%clk 0:01:50]} 31. Rf4+ {[%clk 0:00:09]}  Kg8 {[%clk 0:01:49]} 32. Rf7 {[%clk 0:00:06]}  Bxg2 {[%clk 0:01:40]} 33. Re7 {[%clk 0:00:06]}  Bd5 {[%clk 0:01:40]} 34. Kd2 {[%clk 0:00:05]}  Rf8 {[%clk 0:01:39]} 35. Ke3 {[%clk 0:00:05]}  h6 {[%clk 0:01:39]} 36. c3 {[%clk 0:00:04]}  bxc3 {[%clk 0:01:38]} 37. bxc3 {[%clk 0:00:05]}  Rf3+ {[%clk 0:01:37]} 38. Kd4 {[%clk 0:00:04]}  Rf2 {[%clk 0:01:37]} 39. c4 {[%clk 0:00:04]}  Bc6 {[%clk 0:01:28]} 40. Rxe6 {[%clk 0:00:04]}  Bd7 {[%clk 0:01:29]} 41. Re7 {[%clk 0:00:04]}  Bg4 {[%clk 0:01:28]} 42. e6 {[%clk 0:00:03]}  Re2 {[%clk 0:01:27]} 43. Ne4 {[%clk 0:00:02]}  Bf3 {[%clk 0:01:26]} 44. Re8+ {[%clk 0:00:01]}  Kh7 {[%clk 0:01:25]} 45. Ng3 {[%clk 0:00:01]}  Bg4 {[%clk 0:01:22]} 46. Nxe2 {[%clk 0:00:01]}  Bxe2 {[%clk 0:01:21]} 47. e7 {[%clk 0:00:02]}  Bh5 {[%clk 0:01:21]} 48. Rd8 {[%clk 0:00:03]}  g5 {[%clk 0:01:19]} 49. e8=Q {[%clk 0:00:04]}  Bxe8 {[%clk 0:01:18]} 50. Rxe8 {[%clk 0:00:05]}  Kg7 {[%clk 0:01:15]} 51. Re6 {[%clk 0:00:06]}  Kf7 {[%clk 0:01:15]} 52. Rxh6 {[%clk 0:00:05]}  Kg7 {[%clk 0:01:16]} 53. Ra6 {[%clk 0:00:06]}  Kf7 {[%clk 0:01:16]} 54. Rxa5 {[%clk 0:00:06]}  Ke7 {[%clk 0:01:17]} 55. Rd5 {[%clk 0:00:03]}  Ke6 {[%clk 0:01:17]} 56. Re5+ {[%clk 0:00:04]}  Kf6 {[%clk 0:01:17]} 57. c5 {[%clk 0:00:04]}  g4 {[%clk 0:01:17]} 58. Re3 {[%clk 0:00:04]}  Kf5 {[%clk 0:01:17]} 59. Rg3 {[%clk 0:00:05]}  Kf4 {[%clk 0:01:17]} 60. c6 {[%clk 0:00:05]}  Kf5 {[%clk 0:01:16]} 61. c7 {[%clk 0:00:05]}  Ke6 {[%clk 0:01:17]} 62. c8=Q+ {[%clk 0:00:05]}  Ke7 {[%clk 0:01:17]} 63. Qc7+ {[%clk 0:00:05]}  Ke6 {[%clk 0:01:18]} 64. Qc6+ {[%clk 0:00:05]}  Kf5 {[%clk 0:01:19]} 65. Re3 {[%clk 0:00:05]}  Kf4 {[%clk 0:01:18]} 66. Qf6# {[%clk 0:00:04]} 1-0


[Site "https://www.chess.com"]

[Event "Titled Tuesday Blitz July 18 Late 2023"]
[White "Djordjevic, Dejan N"]
[Black "Keleberda, Tymur"]
[WhiteFideId "913316"]
[BlackFideId "14174294"]
[WhiteElo "2056"]
[BlackElo "2512"]
[Result "1/2-1/2"]
[Round "1"]
[TimeControl "180+2"]
[Date "2023.07.18"]
[WhiteClock "0:00:09"]
[BlackClock "0:00:07"]
[Board "191"]

1. e4 {[%clk 0:02:53]}  g6 {[%clk 0:02:57]} 2. d4 {[%clk 0:02:53]}  d6 {[%clk 0:02:58]} 3. g3 {[%clk 0:02:53]}  Bg7 {[%clk 0:02:57]} 4. Bg2 {[%clk 0:02:53]}  Nf6 {[%clk 0:02:57]} 5. Ne2 {[%clk 0:02:52]}  Nc6 {[%clk 0:02:55]} 6. h3 {[%clk 0:02:51]}  e5 {[%clk 0:02:52]} 7. Be3 {[%clk 0:02:50]}  exd4 {[%clk 0:02:52]} 8. Nxd4 {[%clk 0:02:50]}  O-O {[%clk 0:02:52]} 9. O-O {[%clk 0:02:50]}  Re8 {[%clk 0:02:52]} 10. Nc3 {[%clk 0:02:47]}  Bd7 {[%clk 0:02:51]} 11. Re1 {[%clk 0:02:44]}  Ne5 {[%clk 0:02:45]} 12. b3 {[%clk 0:02:42]}  Qc8 {[%clk 0:02:43]} 13. f4 {[%clk 0:02:40]}  Nc6 {[%clk 0:02:41]} 14. Kh2 {[%clk 0:02:39]}  a5 {[%clk 0:02:37]} 15. a4 {[%clk 0:02:38]}  Nb4 {[%clk 0:02:30]} 16. Bf2 {[%clk 0:02:33]}  Re7 {[%clk 0:02:20]} 17. Qd2 {[%clk 0:02:32]}  Qe8 {[%clk 0:02:06]} 18. Re2 {[%clk 0:02:30]}  Rd8 {[%clk 0:02:04]} 19. Rae1 {[%clk 0:02:29]}  Bc8 {[%clk 0:02:02]} 20. Ndb5 {[%clk 0:02:21]}  b6 {[%clk 0:01:58]} 21. Nd5 {[%clk 0:02:12]}  Nfxd5 {[%clk 0:01:51]} 22. exd5 {[%clk 0:02:12]}  Rxe2 {[%clk 0:01:44]} 23. Rxe2 {[%clk 0:02:12]}  Qd7 {[%clk 0:01:43]} 24. c4 {[%clk 0:02:11]}  Na6 {[%clk 0:01:37]} 25. Qe3 {[%clk 0:02:02]}  Nc5 {[%clk 0:01:29]} 26. Na7 {[%clk 0:01:48]}  Bb7 {[%clk 0:01:24]} 27. Bf3 {[%clk 0:01:45]}  Kf8 {[%clk 0:01:21]} 28. Nc6 {[%clk 0:01:37]}  Re8 {[%clk 0:01:15]} 29. Qxe8+ {[%clk 0:01:26]}  Qxe8 {[%clk 0:01:16]} 30. Rxe8+ {[%clk 0:01:25]}  Kxe8 {[%clk 0:01:17]} 31. Bd1 {[%clk 0:01:12]}  Kd7 {[%clk 0:01:08]} 32. Nd4 {[%clk 0:01:11]}  Ne4 {[%clk 0:01:01]} 33. Be3 {[%clk 0:01:09]}  f5 {[%clk 0:00:59]} 34. g4 {[%clk 0:01:08]}  fxg4 {[%clk 0:00:53]} 35. hxg4 {[%clk 0:01:08]}  Nc5 {[%clk 0:00:53]} 36. Bc2 {[%clk 0:01:04]}  Ke7 {[%clk 0:00:48]} 37. Kh3 {[%clk 0:01:04]}  Bc8 {[%clk 0:00:48]} 38. Kh4 {[%clk 0:00:54]}  Bf6+ {[%clk 0:00:48]} 39. Kg3 {[%clk 0:00:54]}  Kf7 {[%clk 0:00:45]} 40. Nb5 {[%clk 0:00:53]}  Bd8 {[%clk 0:00:46]} 41. Bd4 {[%clk 0:00:53]}  h5 {[%clk 0:00:44]} 42. f5 {[%clk 0:00:21]}  h4+ {[%clk 0:00:41]} 43. Kf4 {[%clk 0:00:20]}  gxf5 {[%clk 0:00:20]} 44. gxf5 {[%clk 0:00:20]}  Bd7 {[%clk 0:00:20]} 45. Nc3 {[%clk 0:00:19]}  Bf6 {[%clk 0:00:19]} 46. Ne2 {[%clk 0:00:15]}  Bxd4 {[%clk 0:00:18]} 47. Nxd4 {[%clk 0:00:16]}  h3 {[%clk 0:00:12]} 48. Nf3 {[%clk 0:00:16]}  Kf6 {[%clk 0:00:12]} 49. Kg4 {[%clk 0:00:11]}  Bc8 {[%clk 0:00:09]} 50. Kf4 {[%clk 0:00:08]}  Bd7 {[%clk 0:00:08]} 51. Kg4 {[%clk 0:00:08]}  Be8 {[%clk 0:00:08]} 52. Kxh3 {[%clk 0:00:08]}  Bh5 {[%clk 0:00:08]} 53. Kg3 {[%clk 0:00:07]}  Nd7 {[%clk 0:00:06]} 54. Nd4 {[%clk 0:00:06]}  Ke5 {[%clk 0:00:05]} 55. Nb5 {[%clk 0:00:05]}  Be2 {[%clk 0:00:03]} 56. Nxc7 {[%clk 0:00:05]}  Nc5 {[%clk 0:00:03]} 57. Nb5 {[%clk 0:00:04]}  Bd3 {[%clk 0:00:03]} 58. Bxd3 {[%clk 0:00:04]}  Nxd3 {[%clk 0:00:04]} 59. Kg4 {[%clk 0:00:04]}  Nc5 {[%clk 0:00:04]} 60. Kg5 {[%clk 0:00:04]}  Ne4+ {[%clk 0:00:04]} 61. Kg6 {[%clk 0:00:05]}  Nf6 {[%clk 0:00:02]} 62. Nxd6 {[%clk 0:00:04]}  Nd7 {[%clk 0:00:02]} 63. Nc8 {[%clk 0:00:04]}  Kd4 {[%clk 0:00:01]} 64. f6 {[%clk 0:00:04]}  Kc3 {[%clk 0:00:02]} 65. f7 {[%clk 0:00:04]}  Kxb3 {[%clk 0:00:02]} 66. Nxb6 {[%clk 0:00:04]}  Nxb6 {[%clk 0:00:01]} 67. f8=Q {[%clk 0:00:03]}  Kxc4 {[%clk 0:00:01]} 68. Qd6 {[%clk 0:00:04]}  Nxd5 {[%clk 0:00:02]} 69. Qc6+ {[%clk 0:00:04]}  Kb4 {[%clk 0:00:01]} 70. Qb5+ {[%clk 0:00:04]}  Ka3 {[%clk 0:00:01]} 71. Qc5+ {[%clk 0:00:05]}  Nb4 {[%clk 0:00:02]} 72. Qxa5 {[%clk 0:00:05]}  Kb3 {[%clk 0:00:03]} 73. Qb5 {[%clk 0:00:05]}  Kc3 {[%clk 0:00:03]} 74. a5 {[%clk 0:00:06]}  Nd3 {[%clk 0:00:03]} 75. Qd5 {[%clk 0:00:06]}  Nf4+ {[%clk 0:00:03]} 76. Kf5 {[%clk 0:00:06]}  Nxd5 {[%clk 0:00:03]} 77. a6 {[%clk 0:00:06]}  Nb6 {[%clk 0:00:04]} 78. Ke6 {[%clk 0:00:07]}  Kb4 {[%clk 0:00:05]} 79. Kd6 {[%clk 0:00:08]}  Kb5 {[%clk 0:00:05]} 80. a7 {[%clk 0:00:08]}  Ka6 {[%clk 0:00:06]} 81. a8=Q+ {[%clk 0:00:09]}  Nxa8 {[%clk 0:00:07]} 1/2-1/2


[Site "https://www.chess.com"]

[Event "Titled Tuesday Blitz July 18 Late 2023"]
[White "Guliev, Logman"]
[Black "Piekarski, Atila Balzer"]
[WhiteFideId "13400061"]
[BlackFideId "2119552"]
[WhiteElo "2510"]
[BlackElo "2047"]
[Result "1-0"]
[Round "1"]
[TimeControl "180+2"]
[Date "2023.07.18"]
[WhiteClock "0:00:27"]
[BlackClock "0:00:06"]
[Board "194"]

1. e4 {[%clk 0:02:57]}  c5 {[%clk 0:02:59]} 2. Nf3 {[%clk 0:02:57]}  d6 {[%clk 0:02:59]} 3. Nc3 {[%clk 0:02:56]}  Nf6 {[%clk 0:02:57]} 4. d4 {[%clk 0:02:56]}  cxd4 {[%clk 0:02:57]} 5. Nxd4 {[%clk 0:02:56]}  a6 {[%clk 0:02:57]} 6. f4 {[%clk 0:02:55]}  e5 {[%clk 0:02:56]} 7. Nf3 {[%clk 0:02:55]}  Be7 {[%clk 0:02:52]} 8. Bd3 {[%clk 0:02:55]}  Qc7 {[%clk 0:02:33]} 9. O-O {[%clk 0:02:55]}  Be6 {[%clk 0:02:33]} 10. Kh1 {[%clk 0:02:55]}  Nbd7 {[%clk 0:02:31]} 11. Qe2 {[%clk 0:02:43]}  b5 {[%clk 0:02:30]} 12. f5 {[%clk 0:02:36]}  Bc4 {[%clk 0:02:30]} 13. Bg5 {[%clk 0:02:37]}  Rc8 {[%clk 0:02:24]} 14. Rad1 {[%clk 0:02:35]}  b4 {[%clk 0:02:08]} 15. Nd5 {[%clk 0:02:07]}  Nxd5 {[%clk 0:01:53]} 16. exd5 {[%clk 0:02:06]}  Bxd5 {[%clk 0:01:39]} 17. Bxe7 {[%clk 0:01:58]}  Kxe7 {[%clk 0:01:32]} 18. Bxa6 {[%clk 0:01:55]}  Bxf3 {[%clk 0:01:29]} 19. Qxf3 {[%clk 0:01:45]}  Ra8 {[%clk 0:01:24]} 20. Bb5 {[%clk 0:01:35]}  Nf6 {[%clk 0:01:20]} 21. Qb3 {[%clk 0:01:01]}  Qa5 {[%clk 0:01:11]} 22. Bc4 {[%clk 0:01:00]}  Rhf8 {[%clk 0:01:01]} 23. Qg3 {[%clk 0:01:00]}  Qc5 {[%clk 0:00:54]} 24. Bb3 {[%clk 0:00:59]}  Ne4 {[%clk 0:00:46]} 25. Qh4+ {[%clk 0:00:45]}  Nf6 {[%clk 0:00:42]} 26. Rd5 {[%clk 0:00:45]}  Qc6 {[%clk 0:00:16]} 27. Rfd1 {[%clk 0:00:45]}  Rad8 {[%clk 0:00:15]} 28. R5d2 {[%clk 0:00:36]}  h6 {[%clk 0:00:15]} 29. Qxb4 {[%clk 0:00:34]}  Rd7 {[%clk 0:00:11]} 30. Ba4 {[%clk 0:00:32]}  Rb7 {[%clk 0:00:10]} 31. Qa3 {[%clk 0:00:28]}  Rd8 {[%clk 0:00:06]} 32. Bxc6 {[%clk 0:00:27]} 1-0


[Site "https://www.chess.com"]

[Event "Titled Tuesday Blitz July 18 Late 2023"]
[White "Curtis, John"]
[Black "Luo, Terry"]
[WhiteFideId "3200256"]
[BlackFideId "30931045"]
[WhiteElo "2038"]
[BlackElo "2509"]
[Result "0-1"]
[Round "1"]
[TimeControl "180+2"]
[Date "2023.07.18"]
[WhiteClock "0:00:54"]
[BlackClock "0:02:04"]
[Board "195"]

1. d4 {[%clk 0:02:56]}  Nf6 {[%clk 0:02:59]} 2. Nf3 {[%clk 0:02:45]}  g6 {[%clk 0:02:59]} 3. g3 {[%clk 0:02:44]}  Bg7 {[%clk 0:02:59]} 4. Bg2 {[%clk 0:02:45]}  O-O {[%clk 0:02:59]} 5. O-O {[%clk 0:02:44]}  d6 {[%clk 0:03:00]} 6. c4 {[%clk 0:02:44]}  c5 {[%clk 0:02:58]} 7. Nc3 {[%clk 0:02:38]}  Nc6 {[%clk 0:02:56]} 8. h3 {[%clk 0:02:36]}  cxd4 {[%clk 0:02:53]} 9. Nxd4 {[%clk 0:02:36]}  Nxd4 {[%clk 0:02:54]} 10. Qxd4 {[%clk 0:02:36]}  Be6 {[%clk 0:02:55]} 11. Qd3 {[%clk 0:02:19]}  Qc8 {[%clk 0:02:45]} 12. b3 {[%clk 0:02:18]}  Bxh3 {[%clk 0:02:45]} 13. Bg5 {[%clk 0:02:14]}  Bxg2 {[%clk 0:02:40]} 14. Kxg2 {[%clk 0:02:14]}  h6 {[%clk 0:02:38]} 15. Bxf6 {[%clk 0:02:12]}  Bxf6 {[%clk 0:02:39]} 16. Nd5 {[%clk 0:02:12]}  Qc6 {[%clk 0:02:38]} 17. f3 {[%clk 0:02:11]}  Kg7 {[%clk 0:02:35]} 18. Nxf6 {[%clk 0:02:10]}  exf6 {[%clk 0:02:33]} 19. g4 {[%clk 0:02:07]}  Rad8 {[%clk 0:02:33]} 20. e4 {[%clk 0:02:07]}  Rfe8 {[%clk 0:02:34]} 21. Rh1 {[%clk 0:02:04]}  Qc5 {[%clk 0:02:24]} 22. Rad1 {[%clk 0:02:01]}  a6 {[%clk 0:02:23]} 23. Qd4 {[%clk 0:01:59]}  Qe5 {[%clk 0:02:19]} 24. Qd2 {[%clk 0:01:56]}  Qg5 {[%clk 0:02:19]} 25. Qxg5 {[%clk 0:01:53]}  fxg5 {[%clk 0:02:12]} 26. Rd5 {[%clk 0:01:51]}  Re5 {[%clk 0:02:11]} 27. Rhd1 {[%clk 0:01:50]}  Rxd5 {[%clk 0:02:11]} 28. Rxd5 {[%clk 0:01:49]}  Kf6 {[%clk 0:02:12]} 29. a4 {[%clk 0:01:39]}  Ke6 {[%clk 0:02:04]} 30. Kf2 {[%clk 0:01:34]}  f6 {[%clk 0:02:02]} 31. Ke3 {[%clk 0:01:33]}  h5 {[%clk 0:02:03]} 32. b4 {[%clk 0:01:25]}  h4 {[%clk 0:02:02]} 33. Kf2 {[%clk 0:01:25]}  Rc8 {[%clk 0:02:01]} 34. c5 {[%clk 0:01:19]}  dxc5 {[%clk 0:02:02]} 35. bxc5 {[%clk 0:01:19]}  Rc6 {[%clk 0:02:02]} 36. Kg2 {[%clk 0:01:17]}  b6 {[%clk 0:02:02]} 37. cxb6 {[%clk 0:01:16]}  Rxb6 {[%clk 0:02:03]} 38. Ra5 {[%clk 0:01:16]}  Rb2+ {[%clk 0:02:03]} 39. Kh3 {[%clk 0:01:15]}  Rf2 {[%clk 0:02:03]} 40. Rxa6+ {[%clk 0:01:15]}  Ke5 {[%clk 0:02:04]} 41. Ra8 {[%clk 0:01:10]}  Rxf3+ {[%clk 0:02:04]} 42. Kg2 {[%clk 0:01:10]}  Rg3+ {[%clk 0:02:05]} 43. Kf2 {[%clk 0:01:09]}  Rxg4 {[%clk 0:02:05]} 44. Re8+ {[%clk 0:01:07]}  Kf4 {[%clk 0:02:05]} 45. a5 {[%clk 0:01:07]}  h3 {[%clk 0:02:02]} 46. Rh8 {[%clk 0:01:02]}  Rg2+ {[%clk 0:02:02]} 47. Kf1 {[%clk 0:01:01]}  g4 {[%clk 0:02:03]} 48. a6 {[%clk 0:01:01]}  Ra2 {[%clk 0:02:04]} 49. Rf8 {[%clk 0:01:00]}  f5 {[%clk 0:02:04]} 50. exf5 {[%clk 0:00:59]}  gxf5 {[%clk 0:02:05]} 51. Rh8 {[%clk 0:00:54]}  Rxa6 {[%clk 0:02:04]} 0-1


[Site "https://www.chess.com"]

[Event "Titled Tuesday Blitz July 18 Late 2023"]
[White "Lutz, Igor Oscar"]
[Black "Haszon, David"]
[WhiteFideId "2110806"]
[BlackFideId "733610"]
[WhiteElo "1948"]
[BlackElo "2508"]
[Result "0-1"]
[Round "1"]
[TimeControl "180+2"]
[Date "2023.07.18"]
[WhiteClock "0:00:50"]
[BlackClock "0:02:40"]
[Board "199"]

1. d4 {[%clk 0:02:55]}  Nf6 {[%clk 0:02:59]} 2. c4 {[%clk 0:02:48]}  e6 {[%clk 0:03:00]} 3. g3 {[%clk 0:02:48]}  d5 {[%clk 0:03:00]} 4. Nd2 {[%clk 0:02:46]}  Be7 {[%clk 0:03:01]} 5. Bg2 {[%clk 0:02:47]}  O-O {[%clk 0:03:02]} 6. Ngf3 {[%clk 0:02:47]}  c6 {[%clk 0:03:01]} 7. O-O {[%clk 0:02:46]}  Nbd7 {[%clk 0:03:01]} 8. Qc2 {[%clk 0:02:47]}  a5 {[%clk 0:02:59]} 9. e4 {[%clk 0:02:47]}  dxe4 {[%clk 0:02:59]} 10. Nxe4 {[%clk 0:02:48]}  Nxe4 {[%clk 0:02:59]} 11. Qxe4 {[%clk 0:02:48]}  Nf6 {[%clk 0:03:00]} 12. Qc2 {[%clk 0:02:48]}  c5 {[%clk 0:02:58]} 13. Rd1 {[%clk 0:02:42]}  cxd4 {[%clk 0:02:57]} 14. Nxd4 {[%clk 0:02:41]}  Qc7 {[%clk 0:02:58]} 15. Nb5 {[%clk 0:02:40]}  Qb8 {[%clk 0:02:56]} 16. Bf4 {[%clk 0:02:37]}  e5 {[%clk 0:02:56]} 17. Be3 {[%clk 0:02:28]}  Be6 {[%clk 0:02:56]} 18. Bb6 {[%clk 0:02:17]}  Rc8 {[%clk 0:02:54]} 19. b3 {[%clk 0:02:13]}  e4 {[%clk 0:02:53]} 20. Be3 {[%clk 0:01:50]}  Qe5 {[%clk 0:02:49]} 21. Bf4 {[%clk 0:01:40]}  Qxb5 {[%clk 0:02:49]} 22. Qxe4 {[%clk 0:01:20]}  Nxe4 {[%clk 0:02:47]} 23. cxb5 {[%clk 0:01:19]}  Nc5 {[%clk 0:02:47]} 24. Bd6 {[%clk 0:01:08]}  Bxd6 {[%clk 0:02:46]} 25. Rxd6 {[%clk 0:01:09]}  Rd8 {[%clk 0:02:44]} 26. Rad1 {[%clk 0:01:09]}  Rxd6 {[%clk 0:02:43]} 27. Rxd6 {[%clk 0:01:10]}  g6 {[%clk 0:02:39]} 28. Rb6 {[%clk 0:01:04]}  Rd8 {[%clk 0:02:39]} 29. Bxb7 {[%clk 0:00:57]}  Nxb7 {[%clk 0:02:39]} 30. Rxb7 {[%clk 0:00:50]}  Rd1+ {[%clk 0:02:40]} 0-1


[Site "https://www.chess.com"]

[Event "Titled Tuesday Blitz July 18 Late 2023"]
[White "Khandelwal, Ankush"]
[Black "Navyblue1"]
[WhiteFideId "413470"]
[WhiteElo "2507"]
[BlackElo "1861"]
[Result "1-0"]
[Round "1"]
[TimeControl "180+2"]
[Date "2023.07.18"]
[WhiteClock "0:01:29"]
[BlackClock "0:00:16"]
[Board "200"]

1. e4 {[%clk 0:02:59]}  c5 {[%clk 0:02:59]} 2. Nf3 {[%clk 0:02:53]}  d6 {[%clk 0:02:58]} 3. d4 {[%clk 0:02:51]}  cxd4 {[%clk 0:02:58]} 4. Nxd4 {[%clk 0:02:51]}  Nf6 {[%clk 0:02:59]} 5. Nc3 {[%clk 0:02:50]}  a6 {[%clk 0:02:57]} 6. Bg5 {[%clk 0:02:38]}  Nbd7 {[%clk 0:02:56]} 7. Bc4 {[%clk 0:02:34]}  Qb6 {[%clk 0:02:54]} 8. Bb3 {[%clk 0:02:31]}  e6 {[%clk 0:02:45]} 9. Qd2 {[%clk 0:02:29]}  Be7 {[%clk 0:02:45]} 10. O-O-O {[%clk 0:02:27]}  O-O {[%clk 0:02:44]} 11. g4 {[%clk 0:02:11]}  Nc5 {[%clk 0:02:20]} 12. Bxf6 {[%clk 0:02:10]}  Bxf6 {[%clk 0:02:20]} 13. g5 {[%clk 0:02:10]}  Nxb3+ {[%clk 0:01:53]} 14. Nxb3 {[%clk 0:02:01]}  Bxc3 {[%clk 0:01:45]} 15. Qxc3 {[%clk 0:01:54]}  Qxf2 {[%clk 0:01:37]} 16. Rxd6 {[%clk 0:01:51]}  Qf4+ {[%clk 0:01:31]} 17. Qd2 {[%clk 0:01:49]}  Qxe4 {[%clk 0:01:21]} 18. Rd1 {[%clk 0:01:41]}  e5 {[%clk 0:00:20]} 19. Rd8 {[%clk 0:01:31]}  Qd4 {[%clk 0:00:20]} 20. Rxf8+ {[%clk 0:01:28]}  Kxf8 {[%clk 0:00:16]} 21. Nxd4 {[%clk 0:01:29]} 1-0


[Site "https://www.chess.com"]

[Event "Titled Tuesday Blitz July 18 Late 2023"]
[White "Nakamura, Hikaru"]
[Black "Sipila, Vilka"]
[WhiteFideId "2016192"]
[BlackFideId "505455"]
[WhiteElo "3249"]
[BlackElo "2603"]
[Result "1-0"]
[Round "2"]
[TimeControl "180+2"]
[Date "2023.07.18"]
[WhiteClock "0:01:34"]
[BlackClock "0:00:10"]
[Board "1"]

1. a3 {[%clk 0:03:00]}  a6 {[%clk 0:02:58]} 2. e4 {[%clk 0:02:59]}  e5 {[%clk 0:02:58]} 3. Bc4 {[%clk 0:02:54]}  Nf6 {[%clk 0:02:58]} 4. d3 {[%clk 0:02:54]}  c6 {[%clk 0:02:58]} 5. Nf3 {[%clk 0:02:54]}  d5 {[%clk 0:02:58]} 6. Ba2 {[%clk 0:02:53]}  Bd6 {[%clk 0:02:52]} 7. Nc3 {[%clk 0:02:52]}  d4 {[%clk 0:02:48]} 8. Ne2 {[%clk 0:02:52]}  O-O {[%clk 0:02:43]} 9. Ng3 {[%clk 0:02:51]}  Be6 {[%clk 0:02:41]} 10. O-O {[%clk 0:02:51]}  Bxa2 {[%clk 0:02:41]} 11. Rxa2 {[%clk 0:02:51]}  Re8 {[%clk 0:02:38]} 12. Nh4 {[%clk 0:02:48]}  g6 {[%clk 0:02:25]} 13. Bg5 {[%clk 0:02:43]}  Nbd7 {[%clk 0:02:18]} 14. c3 {[%clk 0:02:43]}  Qb6 {[%clk 0:02:17]} 15. cxd4 {[%clk 0:02:42]}  exd4 {[%clk 0:02:06]} 16. f4 {[%clk 0:02:42]}  Bf8 {[%clk 0:02:02]} 17. h3 {[%clk 0:02:30]}  h6 {[%clk 0:01:59]} 18. Bxf6 {[%clk 0:02:30]}  Nxf6 {[%clk 0:02:00]} 19. Qd2 {[%clk 0:02:25]}  a5 {[%clk 0:01:52]} 20. Rf2 {[%clk 0:02:25]}  a4 {[%clk 0:01:51]} 21. Ra1 {[%clk 0:02:26]}  Ra5 {[%clk 0:01:52]} 22. Raf1 {[%clk 0:02:25]}  Rb5 {[%clk 0:01:52]} 23. Nf3 {[%clk 0:02:23]}  Rb3 {[%clk 0:01:50]} 24. e5 {[%clk 0:02:16]}  Nd5 {[%clk 0:01:49]} 25. f5 {[%clk 0:02:16]}  Ne3 {[%clk 0:01:49]} 26. e6 {[%clk 0:02:15]}  Nxf1 {[%clk 0:01:28]} 27. exf7+ {[%clk 0:02:14]}  Kxf7 {[%clk 0:01:28]} 28. fxg6+ {[%clk 0:02:15]}  Kxg6 {[%clk 0:01:28]} 29. Qf4 {[%clk 0:01:56]}  Qd8 {[%clk 0:00:15]} 30. Ne5+ {[%clk 0:01:37]}  Kh7 {[%clk 0:00:10]} 31. Qf5+ {[%clk 0:01:34]} 1-0


[Site "https://www.chess.com"]

[Event "Titled Tuesday Blitz July 18 Late 2023"]
[White "Geivondian, Arman"]
[Black "Nihal Sarin"]
[WhiteFideId "24102032"]
[BlackFideId "25092340"]
[WhiteElo "2588"]
[BlackElo "3059"]
[Result "0-1"]
[Round "2"]
[TimeControl "180+2"]
[Date "2023.07.18"]
[WhiteClock "0:02:13"]
[BlackClock "0:02:39"]
[Board "3"]

1. e4 {[%clk 0:03:00]}  a6 {[%clk 0:03:00]} 2. d4 {[%clk 0:03:00]}  c6 {[%clk 0:02:59]} 3. c4 {[%clk 0:02:59]}  d5 {[%clk 0:02:57]} 4. cxd5 {[%clk 0:02:59]}  cxd5 {[%clk 0:02:58]} 5. exd5 {[%clk 0:03:00]}  Nf6 {[%clk 0:02:57]} 6. Nc3 {[%clk 0:03:01]}  Nxd5 {[%clk 0:02:57]} 7. Nf3 {[%clk 0:03:01]}  Nc6 {[%clk 0:02:58]} 8. Bc4 {[%clk 0:03:01]}  Be6 {[%clk 0:02:57]} 9. Qe2 {[%clk 0:02:58]}  Nxc3 {[%clk 0:02:51]} 10. bxc3 {[%clk 0:02:59]}  Bxc4 {[%clk 0:02:51]} 11. Qxc4 {[%clk 0:02:59]}  e6 {[%clk 0:02:52]} 12. O-O {[%clk 0:02:59]}  Be7 {[%clk 0:02:52]} 13. Rb1 {[%clk 0:02:58]}  Qd7 {[%clk 0:02:53]} 14. Qb3 {[%clk 0:02:58]}  b5 {[%clk 0:02:53]} 15. Bf4 {[%clk 0:02:55]}  O-O {[%clk 0:02:53]} 16. Ne5 {[%clk 0:02:55]}  Nxe5 {[%clk 0:02:53]} 17. Bxe5 {[%clk 0:02:56]}  Rfc8 {[%clk 0:02:53]} 18. Rfc1 {[%clk 0:02:55]}  Rc4 {[%clk 0:02:54]} 19. Rc2 {[%clk 0:02:49]}  Rac8 {[%clk 0:02:54]} 20. Rbc1 {[%clk 0:02:50]}  Bg5 {[%clk 0:02:54]} 21. Rd1 {[%clk 0:02:45]}  b4 {[%clk 0:02:54]} 22. Rd3 {[%clk 0:02:45]}  Qc6 {[%clk 0:02:51]} 23. Rg3 {[%clk 0:02:42]}  f6 {[%clk 0:02:44]} 24. h4 {[%clk 0:02:25]}  Bxh4 {[%clk 0:02:44]} 25. Rg4 {[%clk 0:02:21]}  fxe5 {[%clk 0:02:44]} 26. Rxh4 {[%clk 0:02:22]}  exd4 {[%clk 0:02:45]} 27. Qb1 {[%clk 0:02:18]}  d3 {[%clk 0:02:38]} 28. Rxc4 {[%clk 0:02:13]}  dxc2 {[%clk 0:02:39]} 0-1


[Site "https://www.chess.com"]